bitfinex-derivatives/quotes_BTCF0:USTF0_20250330
["timestamp","ask_amount","ask_price","bid_price","bid_amount"]
[1743325204915,0.0315,83412.0,83411.0,0.2314615]
[1743325205324,0.1514203,83412.0,83411.0,0.2314615]
[1743325205625,0.1524203,83412.0,83411.0,0.2314615]
[1743325206416,0.1524203,83412.0,83411.0,0.2195218]
[1743325208429,0.1524203,83412.0,83411.0,0.1205218]
[1743325210517,0.1524203,83412.0,83411.0,0.0006]
[1743325211127,0.1524203,83412.0,83411.0,0.1205218]
[1743325211721,0.1524203,83412.0,83411.0,0.1507218]
[1743325212418,0.5132203,83412.0,83411.0,0.0006]
[1743325212823,0.5132203,83412.0,83411.0,0.1199218]
[1743325213023,0.5132203,83412.0,83411.0,0.1209218]
[1743325213225,0.5460203,83412.0,83411.0,0.1209218]
[1743325213427,0.5460203,83412.0,83411.0,0.001]
[1743325213632,0.119929,83406.0,83405.0,0.1199295]
[1743325213929,0.120929,83406.0,83405.0,1.6205295]
[1743325215022,0.120929,83406.0,83405.0,1.6536295]
[1743325215430,0.120929,83406.0,83405.0,1.6848295]
[1743325219233,0.120929,83406.0,83405.0,1.6536295]
[1743325219434,0.119929,83406.0,83405.0,1.6536295]
[1743325219632,0.120929,83406.0,83405.0,1.6536295]
[1743325220126,0.120929,83406.0,83405.0,1.5337]
[1743325220332,0.120929,83406.0,83405.0,1.6205304]
[1743325221039,0.270929,83406.0,83405.0,0.0006]
[1743325221227,0.119939,83399.0,83396.0,0.28646851]
[1743325221429,0.481899,83399.0,83398.0,0.0006]
[1743325222039,0.60179516,83399.0,83398.0,0.0006]
[1743325222237,0.66249516,83399.0,83398.0,0.0006]
[1743325223333,0.6715533,83399.0,83398.0,0.0006]
[1743325223532,0.1199419,83397.0,83396.0,8e-05]
[1743325223727,0.23646191,83397.0,83396.0,8e-05]
[1743325224336,0.12118191,83397.0,83396.0,8e-05]
[1743325224846,0.12518191,83397.0,83396.0,8e-05]
[1743325225045,0.12518191,83397.0,83396.0,0.00068]
[1743325225235,0.12518191,83397.0,83396.0,1.56258]
[1743325225436,0.12918191,83397.0,83396.0,1.56258]
[1743325225637,0.12918191,83397.0,83396.0,1.6825234]
[1743325229650,0.1279419,83397.0,83396.0,1.6825234]
[1743325229851,0.12914191,83397.0,83396.0,1.6825234]
[1743325231144,0.12914191,83397.0,83396.0,0.1825234]
[1743325231759,0.1291019,83397.0,83396.0,0.1825234]
[1743325231958,0.1291019,83397.0,83396.0,0.2131234]
[1743325233250,0.1279419,83397.0,83396.0,0.2131234]
[1743325233449,0.1291019,83397.0,83396.0,0.2131234]
[1743325237862,0.1611019,83397.0,83396.0,0.2131234]
[1743325238458,0.1599419,83397.0,83396.0,0.2131234]
[1743325238658,0.1611019,83397.0,83396.0,0.2131234]
[1743325239451,0.1599419,83397.0,83396.0,0.2131234]
[1743325239656,0.1611019,83397.0,83396.0,0.2131234]
[1743325240354,0.1599419,83397.0,83396.0,0.2131234]
[1743325240564,0.1611019,83397.0,83396.0,0.2131234]
[1743325240758,0.00916,83397.0,83396.0,0.2131234]
[1743325242061,0.00516,83397.0,83396.0,0.2131234]
[1743325242458,0.00116,83397.0,83396.0,0.2131234]
[1743325243965,0.0599609,83411.0,83406.0,0.119929]
[1743325244166,0.12094737,83407.0,83406.0,0.120569]
[1743325244560,0.00101987,83407.0,83406.0,0.120569]
[1743325244759,0.00101987,83407.0,83406.0,0.184269]
[1743325245461,0.00501987,83407.0,83406.0,0.184269]
[1743325247963,0.00501987,83407.0,83406.0,0.19631671]
[1743325250057,0.00501987,83407.0,83406.0,0.184269]
[1743325250258,0.03571987,83407.0,83406.0,0.184269]
[1743325251066,0.06691987,83407.0,83406.0,0.184269]
[1743325251262,0.18684737,83407.0,83406.0,0.184269]
[1743325253071,0.06691987,83407.0,83406.0,0.184269]
[1743325264885,0.06691987,83407.0,83406.0,1.684269]
[1743325265080,0.18600737,83407.0,83406.0,1.684269]
[1743325265397,0.18684737,83407.0,83406.0,1.684269]
[1743325265580,0.06691987,83407.0,83406.0,1.684269]
[1743325265781,0.18684737,83407.0,83406.0,1.50064]
[1743325265970,0.18684737,83407.0,83406.0,0.00064]
[1743325266175,0.1199376,83400.0,83399.0,8e-05]
[1743325266483,0.4815776,83400.0,83399.0,1.50068]
[1743325266983,0.4815776,83400.0,83399.0,1.620619]
[1743325267177,0.5433776,83400.0,83399.0,0.120619]
[1743325269089,0.5433776,83400.0,83399.0,0.00068]
[1743325269276,0.5433776,83400.0,83399.0,8e-05]
[1743325269786,0.1199462,83394.0,83393.0,0.1199472]
[1743325270080,0.1199462,83394.0,83393.0,0.1205472]
[1743325270081,0.1207862,83394.0,83393.0,0.1205472]
[1743325270675,0.1838862,83394.0,83393.0,0.1205472]
[1743325271070,0.06394,83394.0,83393.0,0.1205472]
[1743325271275,0.06394,83394.0,83393.0,0.1516472]
[1743325271470,0.06394,83394.0,83393.0,0.1843472]
[1743325272176,0.06394,83394.0,83393.0,0.1853472]
[1743325273475,0.1838862,83394.0,83393.0,0.1853472]
[1743325273874,0.1838862,83394.0,83393.0,0.0026]
[1743325274076,0.1838862,83394.0,83393.0,0.002]
[1743325274676,0.1838862,83394.0,83393.0,0.0026]
[1743325276585,0.1838862,83394.0,83393.0,0.1225477]
[1743325276981,0.1838862,83394.0,83393.0,0.1539477]
[1743325277284,0.1838862,83394.0,83393.0,0.1225477]
[1743325278985,0.1838862,83394.0,83393.0,0.0026]
[1743325279683,0.1838862,83394.0,83393.0,0.002]
[1743325280195,0.1838862,83394.0,83393.0,0.0026]
[1743325280991,0.5446862,83394.0,83393.0,0.0026]
[1743325282390,0.1838862,83394.0,83393.0,0.0026]
[1743325282598,0.6599662,83394.0,83393.0,0.0026]
[1743325282792,0.76768489,83394.0,83393.0,0.002]
[1743325284494,0.76768489,83394.0,83393.0,0.00264]
[1743325286396,0.6599662,83394.0,83393.0,0.00264]
[1743325286589,0.6599662,83394.0,83393.0,0.03324]
[1743325287197,0.2991662,83394.0,83393.0,0.03324]
[1743325287394,0.6599662,83394.0,83393.0,0.03324]
[1743325287590,0.5446862,83394.0,83393.0,0.1854877]
[1743325287791,0.4815862,83394.0,83393.0,0.2177877]
[1743325291497,0.5123862,83394.0,83393.0,0.2177877]
[1743325293204,0.4815862,83394.0,83393.0,0.2177877]
[1743325297399,0.1207862,83394.0,83393.0,0.2177877]
[1743325297588,0.4807462,83394.0,83393.0,0.2177877]
[1743325297793,0.4815862,83394.0,83393.0,0.2177877]
[1743325298693,0.5140862,83394.0,83393.0,0.2177877]
[1743325300897,0.65757882,83394.0,83393.0,0.2177877]
[1743325302391,0.65757882,83394.0,83393.0,0.09784]
[1743325302597,0.65757882,83394.0,83393.0,0.0649]
[1743325303407,0.65757882,83394.0,83393.0,0.06574]
[1743325304699,0.65757882,83394.0,83393.0,0.0649]
[1743325304904,0.65757882,83394.0,83393.0,0.06554]
[1743325305104,0.5140862,83394.0,83393.0,0.06554]
[1743325305300,0.5140862,83394.0,83393.0,0.0649]
[1743325305609,0.1532862,83394.0,83393.0,0.0649]
[1743325305807,0.5140862,83394.0,83393.0,0.0655]
[1743325306909,0.5140862,83394.0,83393.0,0.0332]
[1743325307110,0.5140862,83394.0,83393.0,0.0326]
[1743325307411,0.5140862,83394.0,83393.0,0.0332]
[1743325308212,0.1532862,83394.0,83393.0,0.0332]
[1743325308405,0.5140862,83394.0,83393.0,0.0332]
[1743325308599,0.5140862,83394.0,83393.0,0.002]
[1743325309505,0.5454862,83394.0,83393.0,0.002]
[1743325309703,0.5454862,83394.0,83393.0,0.001]
[1743325310208,0.55662403,83394.0,83393.0,0.001]
[1743325311206,0.1199477,83393.0,83392.0,8e-05]
[1743325311412,0.13196554,83393.0,83392.0,8e-05]
[1743325311612,0.19566554,83393.0,83392.0,8e-05]
[1743325313713,0.19564863,83393.0,83392.0,8e-05]
[1743325314413,0.56044863,83393.0,83392.0,8e-05]
[1743325314804,0.19964863,83393.0,83392.0,8e-05]
[1743325315005,0.56044863,83393.0,83392.0,8e-05]
[1743325315606,0.1199505,83391.0,83390.0,0.00017987]
[1743325315806,0.24679142,83391.0,83390.0,0.00017987]
[1743325316303,0.2987705,83391.0,83390.0,0.00017987]
[1743325317505,0.3007705,83391.0,83390.0,0.00017987]
[1743325318314,0.3027705,83391.0,83390.0,0.00017987]
[1743325322300,0.42268823,83391.0,83390.0,0.00017987]
[1743325324416,1.14428823,83391.0,83390.0,0.00017987]
[1743325330915,1.14428823,83391.0,83385.0,0.031]
[1743325330916,0.0599767,83389.0,83385.0,0.031]
[1743325331119,0.1199577,83386.0,83385.0,0.031]
[1743325331317,0.1319882,83386.0,83385.0,0.031]
[1743325332218,0.1319882,83386.0,83382.0,8e-05]
[1743325332219,0.1199621,83383.0,83382.0,8e-05]
[1743325332421,0.4927926,83383.0,83382.0,8e-05]
[1743325332615,0.1199649,83381.0,83380.0,0.0302]
[1743325332937,0.2467954,83381.0,83380.0,0.03028]
[1743325333327,0.3103954,83381.0,83380.0,0.03028]
[1743325333717,0.3113954,83381.0,83380.0,0.03028]
[1743325335219,0.3113954,83381.0,83380.0,0.0302]
[1743325335423,0.68502228,83381.0,83380.0,0.0302]
[1743325335627,0.7433537,83381.0,83380.0,0.0302]
[1743325338725,0.7321632,83381.0,83380.0,0.0302]
[1743325339029,0.74333681,83381.0,83380.0,0.0302]
[1743325339219,0.68500539,83381.0,83380.0,0.0302]
[1743325342123,0.86461905,83381.0,83380.0,0.0302]
[1743325342833,0.86661905,83381.0,83380.0,0.0302]
[1743325343027,0.86761905,83381.0,83380.0,0.0302]
[1743325345435,0.74633675,83381.0,83380.0,0.0302]
[1743325345823,0.86626886,83381.0,83380.0,0.0302]
[1743325347830,0.86650886,83381.0,83380.0,0.0302]
[1743325352237,0.8665571,83381.0,83380.0,0.0302]
[1743325354235,0.86657247,83381.0,83380.0,0.0302]
[1743325356027,0.8665764,83381.0,83380.0,0.0302]
[1743325356939,0.5057764,83381.0,83380.0,0.0302]
[1743325357142,0.8665764,83381.0,83380.0,0.0302]
[1743325358540,0.8667764,83381.0,83380.0,0.0302]
[1743325359226,0.8667364,83381.0,83380.0,0.0302]
[1743325360935,0.7516164,83381.0,83380.0,0.0302]
[1743325361145,0.8666964,83381.0,83380.0,0.0302]
[1743325361734,0.85545525,83381.0,83380.0,0.0302]
[1743325361934,0.86670808,83381.0,83380.0,0.0302]
[1743325363547,0.50590808,83381.0,83380.0,0.0302]
[1743325363749,0.86670808,83381.0,83380.0,0.0302]
[1743325365738,0.75162808,83381.0,83380.0,0.0302]
[1743325365940,0.86658808,83381.0,83380.0,0.0302]
[1743325367349,0.50578808,83381.0,83380.0,0.0302]
[1743325367548,0.86658808,83381.0,83380.0,0.0302]
[1743325367938,0.50578808,83381.0,83380.0,0.0302]
[1743325368140,0.86658808,83381.0,83380.0,0.0302]
[1743325369345,0.1199664,83380.0,83379.0,8e-05]
[1743325369545,0.13205923,83380.0,83379.0,8e-05]
[1743325369849,0.16285923,83380.0,83379.0,8e-05]
[1743325370048,0.28279134,83380.0,83379.0,8e-05]
[1743325370646,0.31439134,83380.0,83379.0,8e-05]
[1743325370949,0.31739134,83380.0,83379.0,8e-05]
[1743325371747,0.3787227,83380.0,83379.0,8e-05]
[1743325372252,1.1003227,83380.0,83379.0,8e-05]
[1743325373352,1.10031932,83380.0,83379.0,8e-05]
[1743325374653,0.37871932,83380.0,83379.0,8e-05]
[1743325374953,1.10031932,83380.0,83379.0,8e-05]
[1743325375453,1.10031902,83380.0,83379.0,8e-05]
[1743325376748,1.10031902,83380.0,83378.0,0.0307]
[1743325376749,0.1199678,83379.0,83378.0,0.0307]
[1743325377048,0.27739695,83379.0,83378.0,0.0307]
[1743325377352,0.34049695,83379.0,83378.0,0.0307]
[1743325378047,0.34349695,83379.0,83378.0,0.0307]
[1743325378441,0.34549695,83379.0,83378.0,0.0307]
[1743325378752,1.06709695,83379.0,83378.0,0.0307]
[1743325379448,1.03659695,83379.0,83378.0,0.0307]
[1743325379653,1.03659695,83379.0,83378.0,0.0629]
[1743325381139,1.09492831,83379.0,83378.0,0.0629]
[1743325381556,0.37332831,83379.0,83378.0,0.0629]
[1743325381749,1.09492831,83379.0,83378.0,0.0629]
[1743325382351,0.37332831,83379.0,83378.0,0.0629]
[1743325382552,1.09492831,83379.0,83378.0,0.0629]
[1743325383245,0.98008831,83379.0,83378.0,0.0629]
[1743325383441,1.09500831,83379.0,83378.0,0.0629]
[1743325386756,0.98008831,83379.0,83378.0,0.0629]
[1743325387055,1.03182831,83379.0,83378.0,0.0629]
[1743325388051,0.91698831,83379.0,83378.0,0.0629]
[1743325388855,1.03182831,83379.0,83378.0,0.0629]
[1743325389262,0.91698831,83379.0,83378.0,0.0629]
[1743325389561,1.03190831,83379.0,83378.0,0.0629]
[1743325389761,1.03182317,83379.0,83378.0,0.1828692]
[1743325389956,1.02065916,83379.0,83378.0,1.6834692]
[1743325390161,0.91690312,83379.0,83378.0,1.7140692]
[1743325392664,0.85857176,83379.0,83378.0,1.7140692]
[1743325393863,0.85852213,83379.0,83378.0,1.7140692]
[1743325394567,0.85852213,83379.0,83378.0,0.2140692]
[1743325395852,0.85852741,83379.0,83378.0,0.2140692]
[1743325398664,0.85852355,83379.0,83378.0,0.2140692]
[1743325398866,0.8474078,83379.0,83378.0,0.2140692]
[1743325399767,0.1258078,83379.0,83378.0,0.2140692]
[1743325400065,0.4857678,83379.0,83378.0,0.2140692]
[1743325400266,0.4866078,83379.0,83378.0,0.2140692]
[1743325401966,0.1258078,83379.0,83378.0,0.2140692]
[1743325402167,0.4857678,83379.0,83378.0,0.2140692]
[1743325402368,0.4866078,83379.0,83378.0,0.2140692]
[1743325403560,0.1258078,83379.0,83378.0,0.2140692]
[1743325403766,0.1249678,83379.0,83378.0,0.2140692]
[1743325403966,0.4857678,83379.0,83378.0,0.2140692]
[1743325404161,0.4866078,83379.0,83378.0,0.2140692]
[1743325409270,0.37775175,83379.0,83378.0,0.2140692]
[1743325409471,0.14379549,83384.0,83383.0,0.1199621]
[1743325409666,0.1443955,83384.0,83383.0,0.1199621]
[1743325409971,0.1443955,83384.0,83383.0,0.1206421]
[1743325410472,0.1443955,83384.0,83383.0,0.1830421]
[1743325411072,0.1463955,83384.0,83383.0,0.1830421]
[1743325411973,0.14679549,83384.0,83383.0,0.1830421]
[1743325412174,0.1473955,83384.0,83383.0,0.1830421]
[1743325412373,0.14679549,83384.0,83383.0,0.1830421]
[1743325412872,0.26675609,83384.0,83383.0,0.1830421]
[1743325413073,0.26739609,83384.0,83383.0,0.1830421]
[1743325413579,0.1236006,83384.0,83383.0,0.1830421]
[1743325414765,0.00017987,83389.0,83388.0,0.1199549]
[1743325414970,0.00017987,83389.0,83388.0,0.1205549]
[1743325414971,0.00077988,83389.0,83388.0,0.1205549]
[1743325415375,0.00077988,83389.0,83388.0,0.13238153]
[1743325415569,0.00077988,83389.0,83388.0,1.69668153]
[1743325416075,0.00277988,83389.0,83388.0,1.69668153]
[1743325416272,0.00377988,83389.0,83388.0,1.69668153]
[1743325416871,0.00385987,83389.0,83388.0,1.69668153]
[1743325418477,0.00185987,83389.0,83388.0,1.69668153]
[1743325419083,0.00085987,83389.0,83388.0,1.69668153]
[1743325419783,0.00017987,83389.0,83388.0,1.69668153]
[1743325419983,0.00077988,83389.0,83388.0,1.69668153]
[1743325421678,0.00017987,83389.0,83388.0,1.69668153]
[1743325421878,0.00077988,83389.0,83388.0,1.69668153]
[1743325422275,0.00017987,83389.0,83388.0,1.69668153]
[1743325425094,0.00017987,83389.0,83388.0,1.69968153]
[1743325425696,0.00017987,83389.0,83388.0,1.85168153]
[1743325425897,0.0303,83393.0,83392.0,0.1199491]
[1743325426098,0.0303,83393.0,83392.0,0.1205491]
[1743325426903,0.0303,83393.0,83392.0,0.1852491]
[1743325428103,0.0303,83393.0,83392.0,0.1862491]
[1743325428600,0.0303,83393.0,83392.0,0.3016891]
[1743325428995,0.0303,83393.0,83392.0,0.3006891]
[1743325429194,0.0303,83393.0,83392.0,0.3016891]
[1743325430091,0.0303,83393.0,83392.0,0.3006891]
[1743325430302,0.0303,83393.0,83392.0,0.3016891]
[1743325430901,0.0303,83393.0,83392.0,0.3006891]
[1743325431101,0.0303,83393.0,83392.0,0.3016891]
[1743325433900,0.061,83393.0,83392.0,0.3016891]
[1743325434412,0.061,83393.0,83392.0,0.1554491]
[1743325434599,0.06164,83393.0,83392.0,0.1554491]
[1743325434902,0.07340449,83393.0,83392.0,0.1225491]
[1743325435206,0.07276449,83393.0,83392.0,0.1225491]
[1743325435394,0.0733645,83393.0,83392.0,0.1225491]
[1743325436306,0.1933122,83393.0,83392.0,0.1225491]
[1743325436900,0.1933122,83393.0,83392.0,0.0026]
[1743325437306,0.1933122,83393.0,83392.0,0.1225491]
[1743325438404,0.20441919,83393.0,83392.0,0.1225491]
[1743325441411,0.56521919,83393.0,83392.0,0.1225491]
[1743325442603,0.56521919,83393.0,83392.0,0.0026]
[1743325443413,0.56531748,83393.0,83392.0,0.0026]
[1743325446505,0.55355299,83393.0,83392.0,0.0026]
[1743325447317,0.66778176,83393.0,83392.0,0.0026]
[1743325447509,0.30698176,83393.0,83392.0,0.0026]
[1743325447709,0.66778176,83393.0,83392.0,0.1225491]
[1743325449001,0.67969712,83393.0,83392.0,0.1225491]
[1743325449609,0.67981712,83393.0,83392.0,0.1225491]
[1743325450012,0.6798071,83393.0,83392.0,0.1225491]
[1743325450608,0.82358645,83393.0,83392.0,0.1225491]
[1743325451418,0.82358645,83393.0,83392.0,0.0026]
[1743325453306,0.82358645,83393.0,83392.0,0.002]
[1743325454018,0.82358645,83393.0,83392.0,0.00264]
[1743325454216,0.6798071,83393.0,83392.0,0.00264]
[1743325454421,0.6798071,83393.0,83392.0,0.00164]
[1743325455224,0.6798071,83393.0,83392.0,0.00064]
[1743325456816,0.3190071,83393.0,83392.0,0.00064]
[1743325457009,0.67984241,83393.0,83392.0,0.00064]
[1743325458417,0.91796491,83393.0,83392.0,0.00064]
[1743325458817,1.27876491,83393.0,83392.0,0.00064]
[1743325459223,0.5571699,83393.0,83392.0,0.00064]
[1743325459527,1.2787699,83393.0,83392.0,0.00064]
[1743325460815,0.5571699,83393.0,83392.0,0.00064]
[1743325461216,1.2787699,83393.0,83392.0,0.00064]
[1743325462127,1.0989698,83393.0,83392.0,0.00064]
[1743325468028,1.0989698,83393.0,83392.0,0.03164]
[1743325468728,0.9846098,83393.0,83392.0,0.03164]
[1743325468926,1.0990498,83393.0,83392.0,0.03164]
[1743325469428,1.0380498,83393.0,83392.0,0.03164]
[1743325470827,0.5628098,83393.0,83392.0,0.06184]
[1743325471027,0.6772098,83393.0,83392.0,0.06184]
[1743325472427,0.3164098,83393.0,83392.0,0.06184]
[1743325472626,0.85698232,83393.0,83392.0,0.06184]
[1743325473030,0.49618232,83393.0,83392.0,0.06184]
[1743325473331,0.85694232,83393.0,83392.0,0.06184]
[1743325474234,0.85694232,83393.0,83392.0,0.1817891]
[1743325475530,0.6771698,83393.0,83392.0,0.1817891]
[1743325476435,0.6771698,83393.0,83392.0,0.06184]
[1743325480538,0.6771698,83393.0,83392.0,0.1817891]
[1743325481039,0.6771698,83393.0,83392.0,0.2130891]
[1743325481239,0.5628098,83393.0,83392.0,0.2130891]
[1743325484142,0.56286157,83393.0,83392.0,0.2130891]
[1743325484343,0.20206157,83393.0,83392.0,0.2130891]
[1743325484544,0.56286157,83393.0,83392.0,0.2130891]
[1743325486444,0.74272606,83393.0,83392.0,0.2130891]
[1743325487045,0.38192606,83393.0,83392.0,0.2130891]
[1743325487232,0.74272606,83393.0,83392.0,0.2130891]
[1743325487738,0.77572606,83393.0,83392.0,0.2130891]
[1743325487942,0.80792606,83393.0,83392.0,0.09314]
[1743325488835,0.80792606,83393.0,83392.0,0.0612]
[1743325489138,0.83822606,83393.0,83392.0,0.0612]
[1743325489639,0.83822606,83393.0,83392.0,0.0302]
[1743325492042,0.83822606,83393.0,83392.0,0.03084]
[1743325492242,0.1199635,83382.0,83381.0,0.27509489]
[1743325492437,0.49263961,83382.0,83381.0,0.30749489]
[1743325492637,0.49263961,83382.0,83381.0,1.80741489]
[1743325493139,0.52323961,83382.0,83381.0,1.74743249]
[1743325493546,0.52323961,83382.0,83381.0,1.77753249]
[1743325494038,0.55603961,83382.0,83381.0,1.77853249]
[1743325494253,0.55603961,83382.0,83381.0,1.89849739]
[1743325494445,0.55603961,83382.0,83381.0,1.6834649]
[1743325495643,0.56809938,83382.0,83381.0,1.6834649]
[1743325498546,0.71200529,83382.0,83381.0,1.6834649]
[1743325498747,0.35120529,83382.0,83381.0,1.6834649]
[1743325504457,0.35135512,83382.0,83381.0,1.6834649]
[1743325508157,0.33992919,83382.0,83381.0,1.6834649]
[1743325508458,0.35135351,83382.0,83381.0,1.6834649]
[1743325508846,0.35135251,83382.0,83381.0,1.6834649]
[1743325510258,0.3513525,83382.0,83381.0,1.6834649]
[1743325516051,0.35135581,83382.0,83381.0,1.6834649]
[1743325518447,0.35135581,83382.0,83381.0,1.5635]
[1743325518658,0.71215581,83382.0,83381.0,0.0016]
[1743325518857,0.71215581,83382.0,83381.0,0.001]
[1743325519054,0.83208649,83382.0,83381.0,0.001]
[1743325519956,0.83208649,83382.0,83380.0,0.09677487]
[1743325520261,0.13139152,83381.0,83380.0,0.09729487]
[1743325520454,0.13207152,83381.0,83380.0,0.09729487]
[1743325520655,0.19427152,83381.0,83380.0,0.09729487]
[1743325520962,0.3142022,83381.0,83380.0,0.09729487]
[1743325521652,0.30277558,83381.0,83380.0,0.09729487]
[1743325521856,0.31418962,83381.0,83380.0,0.09729487]
[1743325522263,0.1199736,83375.0,83374.0,0.00179634]
[1743325522558,0.60714764,83375.0,83374.0,0.00239634]
[1743325522965,0.72707975,83375.0,83374.0,0.00239634]
[1743325523152,0.79227975,83375.0,83374.0,0.00239634]
[1743325524962,0.0599881,83374.0,83371.0,0.00047978]
[1743325525164,0.01141404,83373.0,83371.0,0.00047978]
[1743325525465,0.4807779,83372.0,83371.0,0.00047978]
[1743325525758,0.61305268,83372.0,83371.0,0.00047978]
[1743325525963,0.67625268,83372.0,83371.0,0.00047978]
[1743325526360,0.67625268,83372.0,83355.0,0.00047987]
[1743325526361,0.70627478,83372.0,83355.0,0.00047987]
[1743325526664,0.1200009,83356.0,83355.0,0.00047987]
[1743325526862,0.24657494,83356.0,83355.0,0.00047987]
[1743325527365,0.24655487,83356.0,83355.0,0.00047987]
[1743325527563,0.32321537,83356.0,83355.0,0.00047987]
[1743325528970,0.20897537,83356.0,83355.0,0.00047987]
[1743325529157,0.32341537,83356.0,83355.0,0.00107987]
[1743325529462,1.04501537,83356.0,83355.0,0.00047987]
[1743325529966,1.05413965,83356.0,83355.0,0.00047987]
[1743325531966,0.33253965,83356.0,83355.0,0.00047987]
[1743325532166,1.05413965,83356.0,83355.0,0.00047987]
[1743325539163,1.05407448,83356.0,83355.0,0.00047987]
[1743325539672,1.05407448,83356.0,83355.0,0.03207987]
[1743325540775,1.05407707,83356.0,83355.0,0.03207987]
[1743325544277,1.05387707,83356.0,83355.0,0.03207987]
[1743325544574,1.05388668,83356.0,83355.0,0.03207987]
[1743325548776,1.04254568,83356.0,83355.0,0.03207987]
[1743325548981,1.05390834,83356.0,83355.0,0.03207987]
[1743325553083,0.33230834,83356.0,83355.0,0.03207987]
[1743325553584,1.11225978,83356.0,83355.0,0.03207987]
[1743325556380,1.11227364,83356.0,83355.0,0.03207987]
[1743325562184,1.32803377,83356.0,83355.0,0.03207987]
[1743325563087,1.29593377,83356.0,83355.0,0.03207987]
[1743325564087,0.57433377,83356.0,83355.0,0.03207987]
[1743325564288,1.29593377,83356.0,83355.0,0.03275987]
[1743325564482,1.29593377,83356.0,83355.0,0.03207987]
[1743325565189,1.08017364,83356.0,83355.0,0.03207987]
[1743325565490,0.35857364,83356.0,83355.0,0.03207987]
[1743325565690,1.08017364,83356.0,83355.0,0.03267987]
[1743325565988,1.08017364,83356.0,83355.0,0.03207987]
[1743325567391,1.08019455,83356.0,83355.0,0.03207987]
[1743325568486,1.21621565,83356.0,83355.0,0.03207987]
[1743325569299,1.21621753,83356.0,83355.0,0.03207987]
[1743325570892,1.21620812,83356.0,83355.0,0.03207987]
[1743325571186,1.20481822,83356.0,83355.0,0.03207987]
[1743325571587,1.24740764,83356.0,83355.0,0.03207987]
[1743325571793,0.52580764,83356.0,83355.0,0.03207987]
[1743325571993,1.11138654,83356.0,83355.0,0.03207987]
[1743325574593,1.11138654,83356.0,83355.0,0.00047987]
[1743325576101,0.38978654,83356.0,83355.0,0.00047987]
[1743325576293,1.11138654,83356.0,83355.0,0.00047987]
[1743325576690,0.38978654,83356.0,83355.0,0.00047987]
[1743325576891,1.11138654,83356.0,83355.0,0.00047987]
[1743325577700,1.11135866,83356.0,83355.0,0.03377987]
[1743325577997,0.99711866,83356.0,83355.0,0.06567987]
[1743325578199,1.11135866,83356.0,83355.0,0.06567987]
[1743325578792,1.11136696,83356.0,83355.0,0.06567987]
[1743325579301,1.24640089,83356.0,83355.0,0.06567987]
[1743325579904,0.52480089,83356.0,83355.0,0.06567987]
[1743325580093,1.24640089,83356.0,83355.0,0.03377987]
[1743325582591,1.11137505,83356.0,83355.0,0.03377987]
[1743325584100,0.38977505,83356.0,83355.0,0.03377987]
[1743325584311,1.11137505,83356.0,83355.0,0.03377987]
[1743325584506,1.11138083,83356.0,83355.0,0.03377987]
[1743325585397,0.99714083,83356.0,83355.0,0.03377987]
[1743325585599,1.11138083,83356.0,83355.0,0.03377987]
[1743325585804,0.92138033,83356.0,83355.0,0.06387987]
[1743325586111,0.19978033,83356.0,83355.0,0.18388227]
[1743325586406,0.56058033,83356.0,83355.0,1.68448227]
[1743325589504,0.19978033,83356.0,83355.0,1.68448227]
[1743325590203,0.18839662,83356.0,83355.0,1.68448227]
[1743325590401,0.19977563,83356.0,83355.0,1.68448227]
[1743325591206,0.19885563,83356.0,83355.0,0.18448227]
[1743325591407,0.19977563,83356.0,83355.0,0.18448227]
[1743325591603,0.14142419,83356.0,83355.0,0.18448227]
[1743325592409,0.14142419,83356.0,83355.0,0.21628227]
[1743325593813,0.14142419,83356.0,83355.0,0.09627987]
[1743325594107,0.14142419,83356.0,83344.0,0.0600089]
[1743325594108,0.1200095,83350.0,83349.0,8e-05]
[1743325594314,0.1200124,83348.0,83347.0,0.00017987]
[1743325594503,0.13259142,83348.0,83347.0,0.00081987]
[1743325594910,0.19599142,83348.0,83347.0,0.00081987]
[1743325595907,0.18461241,83348.0,83347.0,0.00181987]
[1743325596099,0.19604259,83348.0,83347.0,0.00181987]
[1743325596500,0.19504259,83348.0,83347.0,0.00181987]
[1743325596916,0.19504259,83348.0,83347.0,0.00117987]
[1743325597215,0.19504259,83348.0,83347.0,0.00317987]
[1743325598010,0.19504259,83348.0,83347.0,0.00117987]
[1743325599612,0.25339492,83348.0,83347.0,0.00017987]
[1743325602322,0.61419492,83348.0,83347.0,0.00017987]
[1743325602717,0.73557836,83348.0,83347.0,0.00017987]
[1743325603223,0.37477836,83348.0,83347.0,0.00017987]
[1743325603424,0.73557836,83348.0,83347.0,0.00017987]
[1743325604118,0.85555796,83348.0,83347.0,0.00017987]
[1743325605520,0.1200182,83344.0,83343.0,0.032]
[1743325605723,0.1200225,83341.0,83340.0,0.09669487]
[1743325605927,0.60784859,83341.0,83340.0,0.12959487]
[1743325606523,0.67194859,83341.0,83340.0,0.12959487]
[1743325607420,0.67294859,83341.0,83340.0,0.12959487]
[1743325607720,0.67294066,83341.0,83340.0,0.12959487]
[1743325608427,1.03374066,83341.0,83340.0,0.12959487]
[1743325608825,1.03474066,83341.0,83340.0,0.09669487]
[1743325609223,1.03474066,83341.0,83340.0,0.12869487]
[1743325609422,1.03474238,83341.0,83340.0,0.12869487]
[1743325610824,1.03474238,83341.0,83340.0,0.16139487]
[1743325612326,1.03474238,83341.0,83340.0,0.16251487]
[1743325612526,1.03474238,83341.0,83340.0,0.16139487]
[1743325613031,1.27263648,83341.0,83340.0,0.16139487]
[1743325616133,1.27275648,83341.0,83340.0,0.16139487]
[1743325617336,1.03486238,83341.0,83340.0,0.16139487]
[1743325617629,1.03486238,83341.0,83340.0,0.16199487]
[1743325617836,1.03486238,83341.0,83340.0,0.16139487]
[1743325618038,1.03486238,83341.0,83340.0,0.16251487]
[1743325618236,0.85616238,83341.0,83340.0,0.16251487]
[1743325618436,0.97080238,83341.0,83340.0,0.28253877]
[1743325618634,1.00190238,83341.0,83340.0,0.16251487]
[1743325618937,1.00190238,83341.0,83340.0,0.16139487]
[1743325620236,1.00190238,83341.0,83340.0,0.16199487]
[1743325620538,0.97080238,83341.0,83340.0,0.16199487]
[1743325620730,0.8447825,83341.0,83340.0,0.16199487]
[1743325620932,0.85608779,83341.0,83340.0,0.28201877]
[1743325621133,0.99971377,83341.0,83340.0,0.28201877]
[1743325621335,0.98840848,83341.0,83340.0,0.28201877]
[1743325622546,0.99971002,83341.0,83340.0,0.28201877]
[1743325624248,0.85608404,83341.0,83340.0,0.28201877]
[1743325626136,0.85605085,83341.0,83340.0,0.28201877]
[1743325626336,0.85605085,83341.0,83340.0,0.16199487]
[1743325626850,0.85605085,83341.0,83340.0,0.16139487]
[1743325627047,0.91795085,83341.0,83340.0,0.16139487]